Cogmind - Beta 14 @@@ ROGUE MODE // 2025.01.11 @ 20:42:24 Player: Swagumen Result: Destroyed by D-53 Grenadier with Mini Grenade Launcher Performance ------------- Evolutions (0) 0 Regions Visited (2) 400 Robots Destroyed (20) 100 Value Destroyed (367) 367 Prototype IDs (2) 40 Alien Tech Used (0) 0 Bonus (0) 0 TOTAL SCORE: 907 Bonus ------- None Cogmind --------- Core Integrity 0/250 Matter 257/300 Energy 74/100 System Corruption 1% Temperature Cool (10) Movement Flying (120) Ox1 Location -10/Mines Parts ------- > --- POWER (1) -------- (None) > --- PROPULSION (2) --- Flight Unit > --- UTILITY (2) ------ Small Storage Unit Signal Interpreter > --- WEAPON (2) ------- (None) > --- INVENTORY (8) ---- Ion Engine Seismic Detector Light Assault Rifle Rocket Launcher Datajack Peak State ------------ > --- POWER ------------ Light Nuclear Core > --- PROPULSION ------- Aluminum Leg Aluminum Leg > --- UTILITY ---------- Small Storage Unit Signal Interpreter > --- WEAPON ----------- Small Laser Light Assault Rifle > --- INVENTORY -------- Ion Engine Ion Engine Seismic Detector Datajack [Rating: 9] Favorites ----------- Power Ion Engine Engine Ion Engine Power Core Light Nuclear Core Propulsion Aluminum Leg Leg Aluminum Leg Flight Unit Flight Unit Utility Small Storage Unit Device Weight Redist. System Storage Small Storage Unit Processor Signal Interpreter Weapon Small Laser Energy Gun Small Laser Ballistic Gun Assault Rifle Special Weapon Mining Laser Build | -11 -10 -10 ------- Run | Yrd Mat Min Slots Evolved . | . . . Power . | . . . Propulsion . | . . . Utility . | . . . Weapon . | . . . Parts Attached 15 | 4 9 2 Power 2 | . 2 . Engine 1 | . 1 . Core 1 | . 1 . Reactor . | . . . Propulsion 5 | 2 1 2 Treads . | . . . Leg 3 | 2 1 . Wheel . | . . . Hover . | . . . Flight 2 | . . 2 Utility 3 | . 3 . Device 1 | . 1 . Storage 1 | . 1 . Processor 1 | . 1 . Hackware . | . . . Protection . | . . . Artifact . | . . . Weapon 5 | 2 3 . Energy Gun 2 | 1 1 . Energy Cannon . | . . . Ballistic Gun 2 | 1 1 . Ballistic Cannon . | . . . Launcher . | . . . Special Weapon 1 | . 1 . Impact Weapon . | . . . Slashing Weapon . | . . . Piercing Weapon . | . . . Special Melee Weapon . | . . . Unidentified Prototypes . | . . . Parts Lost 7 | . 1 6 Power 1 | . . 1 Propulsion 3 | . . 3 Utility . | . . . Weapon 3 | . 1 2 Highest Loss Streak 5 | . 1 5 To Critical Strikes . | . . . Average Slot Usage (%) 92 | . 93 87 Engine 8 | . 10 . Core 4 | . 2 14 Leg 28 | . 28 28 Storage 13 | . 13 14 Processor 10 | . 9 14 Energy Gun 13 | . 13 14 Ballistic Gun 11 | . 14 . Peak Build Rating 9 | 4 9 9 Average Rating 6 | 3 6 8 On Entrance 4 | . 4 9 Naked Turns . | . . . Heaviest Build 13 | 3 13 11 Greatest Support 26 | 20 26 20 Greatest Overweight (x) 1 | . . 1 Average Overweight (x) . | . . . Largest Inventory Capacity 8 | 5 8 8 Average Capacity 7 | 5 7 8 Most Carried 7 | 2 4 7 Average Carried 2 | 1 2 5 Final Capacity 8 | 5 8 8 Final Carried 5 | 2 4 5 Class Distribution -------------------- 100% | Mutant Dominant Class ---------------- Mutant | -10/Materials Mutant | -10/Mines Resources | -11 -10 -10 ----------- Run | Yrd Mat Min Matter Collected 445 | 198 182 65 Remotely . | . . . Salvage Created 642 | 196 369 77 Parts 45 | 19 16 10 Haulers Intercepted 1 | . 1 . Recyclers Shooed . | . . . Parts Field Recycled . | . . . Retrieved Matter . | . . . Parts Self-Destructed . | . . . Prevented . | . . . Kills | -11 -10 -10 ------- Run | Yrd Mat Min Combat Hostiles Destroyed 10 | . 7 3 Guns 10 | . 7 3 Classes Destroyed 6 | 2 3 1 Tunneler 7 | 5 . 2 Hauler 1 | . 1 . Recycler 1 | 1 . . Watcher 1 | . 1 . Swarmer 3 | . . 3 Grunt 7 | . 7 . Best Kill Streak 6 | 6 4 4 Combat Bots Only 4 | . 4 3 Max Kills in Single Turn 1 | 1 1 1 Gunslinging . | . . . Exploded . | . . . Melee . | . . . Uniques/NPCs Destroyed . | . . . Combat | -11 -10 -10 -------- Run | Yrd Mat Min Hostile Shots Fired 97 | . 71 26 Missed 32 | . 30 2 Damage Taken 928 | . 543 385 Core 269 | . 139 130 Absorbed by Shields . | . . . Core Remaining (%) 100 | 100 . . Volleys Fired 76 | 10 51 15 Largest 2 | 2 2 1 Hottest 100 | 60 100 40 Shots Fired 135 | 20 100 15 Gun 134 | 20 99 15 Cannon . | . . . Launcher . | . . . Special 1 | . 1 . Kinetic 59 | 10 49 . Thermal 76 | 10 51 15 Explosive . | . . . Electromagnetic . | . . . Robot Hit Streak 11 | 10 11 3 Robot Miss Streak 5 | 3 5 2 Penetration Max . | . . . Secondary Targets 1 | . 1 . Max Gunslinging Chain 1 | . 1 . Shots Hit Robots 79 | 11 60 8 Core Hits 35 | 7 23 5 Critical Kills . | . . . Critical Parts Destroyed . | . . . Critical Strikes . | . . . Melee Attacks . | . . . Impact . | . . . Slashing . | . . . Piercing . | . . . Sneak Attacks . | . . . Combat Hostiles . | . . . Follow-up Attacks . | . . . Damage Inflicted 974 | 125 750 99 Guns 974 | 125 750 99 Cannons . | . . . Explosions . | . . . Melee . | . . . Ramming . | . . . Kinetic 473 | 35 438 . Thermal 501 | 90 312 99 Explosive . | . . . Electromagnetic . | . . . Impact . | . . . Slashing . | . . . Piercing . | . . . Highest Corruption 1 | . 1 1 Average Corruption 1 | . 1 1 Corruption Purged . | . . . Corruption Blocked . | . . . Effects 2 | . 1 1 Message Errors 1 | . 1 . Heat Flow Errors 1 | . . 1 Overload Shots . | . . . Overflow Damage . | . . . Projectiles . | . . . Explosions . | . . . Melee . | . . . Knockbacks . | . . . Impact . | . . . Kinetic . | . . . Secondary . | . . . Self-Inflicted Damage . | . . . Shots . | . . . Rammed . | . . . Targets Rammed . | . . . Kicked . | . . . Crushed . | . . . Highest Temperature 155 | 15 129 155 Average Temperature 42 | 10 45 35 Received Heat Transfer 285 | . 285 . Siege Activations . | . . . Robots Corrupted . | . . . Combat Hostiles . | . . . Parts Fried . | . . . Impact Corruptions . | . . . Robots Melted . | . . . Combat Hostiles . | . . . Parts Melted 1 | . 1 . Heat Transferred 1125 | 200 700 225 Parts Sabotaged . | . . . Parts Stolen . | . . . Parts Stripped . | . . . Power Chain Reactions . | . . . Alert | -11 -10 -10 ------- Run | Yrd Mat Min Peak Influence 163 | 30 163 120 Initial 35 | . 19 35 Average 92 | 8 101 108 Maximum Alert Level . | . . . Low Security (%) 100 | 100 100 100 Level 1 . | . . . Level 2 . | . . . Level 3 . | . . . Level 4 . | . . . Level 5 . | . . . High Security . | . . . Max Security . | . . . Squads Dispatched 3 | . 3 . Investigation 1 | . 1 . Extermination . | . . . Reinforcement 2 | . 2 . Assault . | . . . Garrison . | . . . Intercept . | . . . Searches Triggered . | . . . Construction Impeded . | . . . Haulers Reinforced . | . . . Active Scanning Responses . | . . . Cargo Convoy Interrupts . | . . . Stealth | -11 -10 -10 --------- Run | Yrd Mat Min Distress Signals 1 | . 1 . Communications Jammed . | . . . Distress Signals . | . . . Times Spotted 17 | . 12 5 Peak Tracking Total 4 | . 4 3 Tactical Retreats 1 | . 1 . Traps | -11 -10 -10 ------- Run | Yrd Mat Min Traps Triggered 1 | . 1 . Indirectly . | . . . Trap Hack Attempts . | . . . Triggered . | . . . Disarmed . | . . . Reprogrammed . | . . . Reused . | . . . Traps Extracted . | . . . Installed . | . . . Triggered . | . . . Machines | -11 -10 -10 ---------- Run | Yrd Mat Min Machines Disabled . | . . . Max in Single Turn . | . . . Machines Repaired . | . . . Machines Dismantled . | . . . Machines Sabotaged . | . . . Overloaded Fab Kills . | . . . Hacking | -11 -10 -10 --------- Run | Yrd Mat Min Machines Accessed 5 | . 5 . Terminals 4 | . 4 . Fabricators . | . . . Repair Stations . | . . . Recycling Units 1 | . 1 . Scanalyzers . | . . . Garrison Access . | . . . Total Hacks 11 | . 11 . Successful 5 | . 5 . Failed 6 | . 6 . Catastrophic 2 | . 2 . Database Lockouts . | . . . Manual . | . . . Terminals 9 | . 9 . Fabricators . | . . . Repair Stations . | . . . Recycling Units 2 | . 2 . Scanalyzers . | . . . Garrison Access . | . . . Terminal Hacks 3 | . 3 . Prototype ID Bank 1 | . 1 . Hauler Manifests 1 | . 1 . Zone Layout 1 | . 1 . Fabricator Hacks . | . . . Repair Station Hacks . | . . . Recycling Unit Hacks 2 | . 2 . Report Inventory 1 | . 1 . Retrieve Components 1 | . 1 . Scanalyzer . | . . . Garrison Access Hacks . | . . . Unauthorized Hacks . | . . . Terminals . | . . . Fabricators . | . . . Repair Stations . | . . . Recycling Units . | . . . Scanalyzers . | . . . Garrison Access . | . . . Data Cores Recovered . | . . . Used . | . . . Hacking Detections 5 | . 5 . Full Trace Events 1 | . 1 . Feedback Events . | . . . Feedback Blocked . | . . . Robot Schematics Acquired . | . . . Robots Built . | . . . Authchips . | . . . Time . | . . . Total Robot Build Rating . | . . . Part Schematics Acquired . | . . . Parts Built . | . . . Authchips . | . . . Time . | . . . Total Part Build Rating . | . . . Parts Repaired . | . . . Time . | . . . Parts Recycled . | . . . Recycled Matter . | . . . Retrieved Matter . | . . . Retrieved Components 3 | . 3 . Parts Scanalyzed . | . . . Part Schematics Acquired . | . . . Parts Damaged . | . . . Bothacking | -11 -10 -10 ------------ Run | Yrd Mat Min Used RIF Installer . | . . . Robots Hacked . | . . . Non-combat . | . . . Combat . | . . . Robot Hacks Applied . | . . . Relay Couplers Released . | . . . Fabnet Peak Effective % . | . . . Robots Rewired . | . . . Allies Hacked . | . . . Hacks Repelled . | . . . Allies | -11 -10 -10 -------- Run | Yrd Mat Min Total Allies . | . . . Largest Group . | . . . Highest-Rated Group . | . . . Highest-Rated Ally . | . . . Total Orders . | . . . Ally Attacks . | . . . Total Damage . | . . . Kills . | . . . Allies Corrupted . | . . . Allies Melted . | . . . Intel | -11 -10 -10 ------- Run | Yrd Mat Min Robot Analysis Total . | . . . Derelict Logs Recovered 1 | . . 1 Drone Launches . | . . . Drone Recoveries . | . . . Exploration | -11 -10 -10 ------------- Run | Yrd Mat Min Turns Passed 766 | 84 570 112 Spaces Moved 422 | 42 317 63 Core 8 | 8 . . Treads . | . . . Legs 413 | 34 317 62 Wheels . | . . . Hover . | . . . Flight 1 | . . 1 Fastest Speed 50 | 50 120 120 Average Speed 118 | 106 120 120 Slowest Speed 120 | 120 120 120 Overloaded Moves . | . . . Propulsion Burnouts . | . . . Robots Hopped . | . . . Cave-ins Triggered . | . . . Exploration Rate (%) 31 | 5 72 18 Regions Visited 2 Branch Regions 1 Pre-discovered Areas . | . . . Known Exits Taken 1 | . 1 . Unknown Exits Taken 1 | 1 . . Scrap Searched . | . . . Spaces Dug 1 | . 1 . Terrain Destroyed 1 | . 1 . Melee . | . . . Projectile 1 | . 1 . AOE . | . . . Terrain Rammed . | . . . Walls Destroyed . | . . . Machines Disabled . | . . . Actions | -11 -10 -10 --------- Run | Yrd Mat Min Total 549 | 61 404 84 Wait 17 | . 16 1 Move 420 | 41 316 63 Hop . | . . . Pick Up 18 | 6 9 3 Fast Attach . | . . . Attach 11 | 4 5 2 Detach . | . . . Swap 4 | . 4 . Drop 3 | . 3 . Fire 76 | 10 51 15 Melee . | . . . Ram . | . . . Kick . | . . . Crush . | . . . Escape Stasis . | . . . Rewire . | . . . Trap . | . . . Miscellaneous . | . . . Route ------- -11/Scrapyard -10/Materials (discovered 4 exits: [*Mat x2] / *Min x2) -10/Mines History --------- Turn | Location | Event 4 | -11/Scrapyard | Discovered new exit (range 14) 85 | -11/Scrapyard | Entered Materials 102 | -10/Materials | Discovered new exit (range 16) 176 | -10/Materials | Discovered new exit (range 12) 265 | -10/Materials | Discovered new exit (range 11) 313 | -10/Materials | Build established: Mutant 531 | -10/Materials | Core integrity fell below 50% 558 | -10/Materials | Discovered new exit (range 5) 652 | -10/Materials | Identified exit to Mines 655 | -10/Materials | Entered Mines 698 | -10/Mines | Assembled infested the area 760 | -10/Mines | Received a Rocket Launcher from a helpful Derelict 765 | -10/Mines | Core integrity fell below 20% 767 | -10/Mines | Destroyed by D-53 Grenadier with Mini Grenade Launcher Last Messages --------------- 00756_ GS-E26(g): "They are crazy." 00757_ GS-E26(g): "Everyone knows a good old rocket launcher goes a long way." 00758_ GS-E26(g): "Need to get rid of a swarm? Done. Need a big hole in the wall? Done." 00759_ System corrupted: Heat flow error (+173). 00759_ GS-E26(g): "Need a small hole in the wall? Leave that to the mining laser wimps, I say!" 00760_ GS-E26(g): "Would you like a rocket launcher? I know I would if I were you, so I'm going to lend you mine." 00760_ GS-E26(g) slips back into the shadows. 00762_ Acquired Rocket Launcher. 00763_ Lgt. Nuclear Core destroyed. 00763_ Aluminum Leg destroyed. 00765_ Sml. Laser destroyed. 00766_ Flight Unit destroyed. 00766_ R-06 Scavenger destroyed. 00767_ The unstable cave ceiling collapses. Map ----- +----------------------------------------------------+ | ????????????????????????????????????????????? ???? | | ???????????????????????????????????????????? #???? | | ????????????????????????????????????????#### ????? | | ??????????????????????????????????#?????# ?????? | | ?????????????????????????????????? ?????# #?????? | | ?????????????????????????????????? ????## #?????? | | ?????????????????????????????????# #??## #?????? | | ?????????????????????????????????# #?## ##????? | | ?????????????????????????????????# ### ####?? | | ?????????????????????????????????# = ##? | | ?????????????????????????????????# ## *% ! * #? | | ?????????????????????????????????# ### * #? | | ???????????????????????????####### ### # ##? | | ???????????????????????????# #### #?? | | ???????????????????????????# ##### ### ##??# #?? | | ???????????????????????????# #???# #?####???# #?? | | ???????????????????????????# #???# #????##### #?? | | ???????????????????????????# #???# #????# #?? | | ???????????????????????????#=#???# #????# #?? | | ???????????????????????????# #???# #???## #####?? | | ???????????????????????????#!#???# #?### ##???? | | ??????????? ???????###??##!#???# ### ##??? | | ???????????? ##### ## # #???# ## #??? | | ???????????????? #???# #??? | | ???????????????????# #???#### ##??? | | ???????????????????# @ #??????## #####???? | | ???????????????????## # = ##???????#####???????? | | ???????????????????# !% #???????????????????? | | ??????????????????# ##???????????????????? | | ????????????????# #????????????????????? | | ?????????????? #????????????????????? | | ?????????????### ##????????????????????? | | ???????????????# #?????????????????????? | | ??????????????# d#?????????????????????? | | ?????????????# ?????????????????????? | | ?????????????# ### d ????????????????????? | | ?????????????## #??## ???????????????????? | | ??????????????####????### ???????????????????? | | ?????????????????????????# ??????????????????? | | ??????????????????????????## ##?????????????????? | | ????????????????????????????###??????????????????? | | ?????????????????????????????????????????????????? | | ?????????????????????????????????????????????????? | | ?????????????????????????????????????????????????? | | ?????????????????????????????????????????????????? | | ?????????????????????????????????????????????????? | | ?????????????????????????????????????????????????? | | ?????????????????????????????????????????????????? | | ?????????????????????????????????????????????????? | | ?????????????????????????????????????????????????? | +----------------------------------------------------+ Best States ------------- Heat Dissipation 25 Energy Generation 14 Energy Capacity 250 Matter Stores 256 Matter Capacity 300 Sight Range 16 Terrain Scan Density 10 Additional Mass Support 6 Evasion (%) 55 Item Schematics ----------------- None Robot Schematics ------------------ None Fabricated ------------ Nothing Alien Tech Used ----------------- None Achievements -------------- None Challenges ------------ None Game ------ Seed RelayShadingReconstructor Manual? 0 Play Time 00:10:27 Cumulative 6.7 hours Start 2025.01.11 @ 20:30:55 End 2025.01.11 @ 20:42:24 Sessions 1 Manual Loads 0 Difficulty Rogue Special Mode None Game No. 10 Rogue 10 Adventurer 0 Explorer 0 Win Type - Total 0 Types 0/0/0/0/0/0/0/0/0 Lore% 8 Gallery% 12 Achievement% 11 Wizard Run 0 Options --------- Layout 1 ASCII 0 Keyboard 0 Movement Mouse Keybinds 0 Fullscreen 0 Font 24/Smallcaps Map View 50x35 Zoom Use 0% Tactical HUD 1 Map Filters NONE Filters NONE Steam 1 RUN: 06a9a302-e8bd-4428-8bee-dc4f978beec7